[Event "Late-Titled-Tuesday-Blitz-February-20-2024"]
[Site "Chess.com"]
[Date "2024.02.20"]
[Round "2"]
[White "GM_RobertoMogranzini"]
[Black "Angry_Twin"]
[Result "0-1"]
[WhiteElo "2573"]
[BlackElo "2970"]
[TimeControl "180+1"]
[EndTime "14:16:49 PST"]
[Termination "Angry_Twin won by resignation"]

1. e4 {[%clk 0:03:00.9]} 1... c5 {[%clk 0:03:00.1]} 2. Nf3 {[%clk 0:03:00.3]}
2... d6 {[%clk 0:03:00.8]} 3. Nc3 {[%clk 0:03:00.1]} 3... Nf6 {[%clk 0:03:00.9]}
4. e5 {[%clk 0:03:00]} 4... dxe5 {[%clk 0:03:01.8]} 5. Nxe5 {[%clk 0:02:59.9]}
5... a6 {[%clk 0:03:02.6]} 6. a4 {[%clk 0:02:57.7]} 6... Nbd7 {[%clk 0:02:58.3]}
7. Nc4 {[%clk 0:02:57.2]} 7... g6 {[%clk 0:02:48.7]} 8. g3 {[%clk 0:02:55.9]}
8... Bg7 {[%clk 0:02:48.6]} 9. Bg2 {[%clk 0:02:55.8]} 9... O-O {[%clk
0:02:48.6]} 10. a5 {[%clk 0:02:52.8]} 10... Ra7 {[%clk 0:02:19.8]} 11. O-O
{[%clk 0:02:51.4]} 11... b5 {[%clk 0:02:14.3]} 12. axb6 {[%clk 0:02:50.5]} 12...
Nxb6 {[%clk 0:02:14.5]} 13. Na5 {[%clk 0:02:50.7]} 13... Bd7 {[%clk 0:02:13.9]}
14. Nc6 {[%clk 0:02:46]} 14... Bxc6 {[%clk 0:02:13.6]} 15. Bxc6 {[%clk
0:02:46.9]} 15... c4 {[%clk 0:02:12.3]} 16. Bg2 {[%clk 0:02:37.5]} 16... e6
{[%clk 0:02:04.5]} 17. d3 {[%clk 0:02:33.8]} 17... cxd3 {[%clk 0:02:04.3]} 18.
Be3 {[%clk 0:02:33.4]} 18... Rd7 {[%clk 0:01:59.5]} 19. Rxa6 {[%clk 0:02:28.6]}
19... Nc4 {[%clk 0:01:59.8]} 20. Bc5 {[%clk 0:02:17.6]} 20... Re8 {[%clk
0:01:51.2]} 21. cxd3 {[%clk 0:01:59.8]} 21... Nxb2 {[%clk 0:01:45.6]} 22. Qe2
{[%clk 0:01:49.9]} 22... Nxd3 {[%clk 0:01:41.2]} 23. Be3 {[%clk 0:01:39.9]}
23... Nb4 {[%clk 0:01:38.5]} 24. Ra8 {[%clk 0:01:35.8]} 24... Qc7 {[%clk
0:01:33.5]} 25. Rxe8+ {[%clk 0:01:34.8]} 25... Nxe8 {[%clk 0:01:32.7]} 26. Ne4
{[%clk 0:01:32.5]} 26... Nd5 {[%clk 0:01:29.6]} 27. Rc1 {[%clk 0:01:31]} 27...
Qb8 {[%clk 0:01:26.2]} 28. Bd2 {[%clk 0:01:26.5]} 28... Nef6 {[%clk 0:01:22.8]}
29. Nxf6+ {[%clk 0:01:20.5]} 29... Bxf6 {[%clk 0:01:22.9]} 30. h4 {[%clk
0:01:20]} 30... h5 {[%clk 0:01:21.6]} 31. Kh2 {[%clk 0:00:50.3]} 31... Kg7
{[%clk 0:01:14.8]} 32. Kg1 {[%clk 0:00:47.4]} 32... Qb2 {[%clk 0:01:12.7]} 33.
Qe1 {[%clk 0:00:39]} 33... Ne7 {[%clk 0:01:03.8]} 34. Bf4 {[%clk 0:00:33.1]}
34... Nf5 {[%clk 0:01:00.2]} 35. Rb1 {[%clk 0:00:32.4]} 35... Qa3 {[%clk
0:00:59.3]} 36. Be4 {[%clk 0:00:26.5]} 36... Nd4 {[%clk 0:00:59]} 37. Rd1 {[%clk
0:00:23.9]} 37... Qb3 {[%clk 0:00:50.8]} 38. Kg2 {[%clk 0:00:22.6]} 38... Qa4
{[%clk 0:00:39.1]} 39. Rd3 {[%clk 0:00:21]} 39... Nc2 {[%clk 0:00:33.6]} 40. Qd2
{[%clk 0:00:19.3]} 40... Qxe4+ {[%clk 0:00:33.6]} 0-1

[Event "Late-Titled-Tuesday-Blitz-February-20-2024"]
[Site "Chess.com"]
[Date "2024.02.20"]
[Round "2"]
[White "IndianSchoolOfSuffering"]
[Black "olawsson"]
[Result "1-0"]
[WhiteElo "2443"]
[BlackElo "2140"]
[TimeControl "180+1"]
[EndTime "14:16:49 PST"]
[Termination "IndianSchoolOfSuffering won by checkmate"]

1. d4 {[%clk 0:03:00.9]} 1... d6 {[%clk 0:02:55.9]} 2. e4 {[%clk 0:02:57.3]}
2... Nc6 {[%clk 0:02:54.1]} 3. Nf3 {[%clk 0:02:55.9]} 3... Nf6 {[%clk
0:02:51.6]} 4. Nc3 {[%clk 0:02:54.1]} 4... Bg4 {[%clk 0:02:50.9]} 5. Be3 {[%clk
0:02:51.6]} 5... e6 {[%clk 0:02:49.5]} 6. Be2 {[%clk 0:02:50]} 6... Be7 {[%clk
0:02:49.7]} 7. O-O {[%clk 0:02:48.5]} 7... O-O {[%clk 0:02:49.8]} 8. h3 {[%clk
0:02:43.4]} 8... Bh5 {[%clk 0:02:48.9]} 9. a4 {[%clk 0:02:39.1]} 9... d5 {[%clk
0:02:39.1]} 10. e5 {[%clk 0:02:32.3]} 10... Ne4 {[%clk 0:02:38.3]} 11. Ne1
{[%clk 0:02:06.5]} 11... Nxc3 {[%clk 0:02:08.1]} 12. bxc3 {[%clk 0:02:04.6]}
12... Bxe2 {[%clk 0:02:00.7]} 13. Qxe2 {[%clk 0:02:03.6]} 13... Na5 {[%clk
0:02:00.7]} 14. f4 {[%clk 0:02:00.4]} 14... f5 {[%clk 0:01:46.8]} 15. exf6
{[%clk 0:01:57.7]} 15... Rxf6 {[%clk 0:01:46.8]} 16. Nf3 {[%clk 0:01:56.8]}
16... Nc4 {[%clk 0:01:42.9]} 17. Ne5 {[%clk 0:01:56.4]} 17... Nd6 {[%clk
0:01:12.4]} 18. a5 {[%clk 0:01:49.5]} 18... Ne4 {[%clk 0:01:08.4]} 19. Qd3
{[%clk 0:01:16.8]} 19... c5 {[%clk 0:01:00.6]} 20. a6 {[%clk 0:00:56]} 20... b6
{[%clk 0:00:46.1]} 21. Rad1 {[%clk 0:00:54.3]} 21... c4 {[%clk 0:00:44.4]} 22.
Nxc4 {[%clk 0:00:51.3]} 22... Ng3 {[%clk 0:00:29.7]} 23. Ne5 {[%clk 0:00:46.9]}
23... Nxf1 {[%clk 0:00:29.3]} 24. Rxf1 {[%clk 0:00:47.1]} 24... Qc7 {[%clk
0:00:27.5]} 25. Bd2 {[%clk 0:00:45.5]} 25... Rc8 {[%clk 0:00:27.3]} 26. Re1
{[%clk 0:00:43.2]} 26... Bd6 {[%clk 0:00:26.3]} 27. Kh2 {[%clk 0:00:38.4]} 27...
Bxe5 {[%clk 0:00:25.4]} 28. Rxe5 {[%clk 0:00:37.2]} 28... Qc4 {[%clk 0:00:24]}
29. Qe3 {[%clk 0:00:37]} 29... Qxa6 {[%clk 0:00:22.9]} 30. Rxe6 {[%clk
0:00:35.5]} 30... Rxe6 {[%clk 0:00:19.7]} 31. Qxe6+ {[%clk 0:00:35.9]} 31... Kf8
{[%clk 0:00:17.4]} 32. f5 {[%clk 0:00:35.8]} 32... Qb7 {[%clk 0:00:17.3]} 33. f6
{[%clk 0:00:35]} 33... Re8 {[%clk 0:00:16.6]} 34. fxg7+ {[%clk 0:00:33.8]} 34...
Kxg7 {[%clk 0:00:14.9]} 35. Bh6+ {[%clk 0:00:22.3]} 35... Kh8 {[%clk 0:00:11.1]}
36. Qxe8# {[%clk 0:00:22.7]} 1-0

[Event "Late-Titled-Tuesday-Blitz-February-20-2024"]
[Site "Chess.com"]
[Date "2024.02.20"]
[Round "2"]
[White "Slovineanu"]
[Black "AlexOstrovskiy"]
[Result "1/2-1/2"]
[WhiteElo "2436"]
[BlackElo "2744"]
[TimeControl "180+1"]
[EndTime "14:16:56 PST"]
[Termination "Game drawn by repetition"]

1. d4 {[%clk 0:02:55.1]} 1... Nf6 {[%clk 0:02:57]} 2. Nf3 {[%clk 0:02:53.2]}
2... c5 {[%clk 0:02:54.5]} 3. d5 {[%clk 0:02:52.9]} 3... g6 {[%clk 0:02:54.8]}
4. Nc3 {[%clk 0:02:52.5]} 4... Bg7 {[%clk 0:02:54.4]} 5. e4 {[%clk 0:02:52.9]}
5... d6 {[%clk 0:02:55.2]} 6. Bb5+ {[%clk 0:02:52.5]} 6... Bd7 {[%clk
0:02:54.1]} 7. a4 {[%clk 0:02:52.9]} 7... O-O {[%clk 0:02:53.5]} 8. h3 {[%clk
0:02:51.8]} 8... Bxb5 {[%clk 0:02:51.7]} 9. axb5 {[%clk 0:02:50.6]} 9... Nbd7
{[%clk 0:02:52.5]} 10. O-O {[%clk 0:02:49.9]} 10... Ne8 {[%clk 0:02:47.4]} 11.
Re1 {[%clk 0:02:48.2]} 11... Nc7 {[%clk 0:02:47.6]} 12. Qd3 {[%clk 0:02:41]}
12... Nb6 {[%clk 0:02:46.5]} 13. Nd2 {[%clk 0:02:01.2]} 13... Qd7 {[%clk
0:02:44.7]} 14. Ra5 {[%clk 0:01:59.1]} 14... e6 {[%clk 0:02:36.2]} 15. Nc4
{[%clk 0:01:20.2]} 15... exd5 {[%clk 0:02:28.1]} 16. Nxd5 {[%clk 0:01:17]} 16...
Nbxd5 {[%clk 0:02:19]} 17. exd5 {[%clk 0:01:15.4]} 17... b6 {[%clk 0:02:15.3]}
18. Ra2 {[%clk 0:01:10.3]} 18... Nxb5 {[%clk 0:02:11.5]} 19. Bf4 {[%clk
0:01:08.8]} 19... Rfe8 {[%clk 0:02:03.6]} 20. Rxe8+ {[%clk 0:01:05.9]} 20...
Rxe8 {[%clk 0:02:04.5]} 21. c3 {[%clk 0:01:03.7]} 21... Re1+ {[%clk 0:01:58.2]}
22. Kh2 {[%clk 0:01:02.8]} 22... Re7 {[%clk 0:01:34.1]} 23. Qg3 {[%clk
0:00:59.1]} 23... Qf5 {[%clk 0:01:19.2]} 24. Bxd6 {[%clk 0:00:55.9]} 24... Nxd6
{[%clk 0:00:59.3]} 25. Qxd6 {[%clk 0:00:55.5]} 25... Rd7 {[%clk 0:00:43.4]} 26.
Qb8+ {[%clk 0:00:50.2]} 26... Bf8 {[%clk 0:00:43.7]} 27. Nxb6 {[%clk 0:00:32.6]}
27... Rd6 {[%clk 0:00:20.3]} 28. Nc4 {[%clk 0:00:20.4]} 28... Qf4+ {[%clk
0:00:18.9]} 29. Kg1 {[%clk 0:00:17.6]} 29... Qxc4 {[%clk 0:00:19.8]} 30. Rxa7
{[%clk 0:00:17.2]} 30... Qf4 {[%clk 0:00:04.4]} 31. Ra8 {[%clk 0:00:15.3]} 31...
Qc1+ {[%clk 0:00:04.6]} 32. Kh2 {[%clk 0:00:15]} 32... Qf4+ {[%clk 0:00:04.9]}
33. Kg1 {[%clk 0:00:15.6]} 33... Qc1+ {[%clk 0:00:05]} 34. Kh2 {[%clk
0:00:15.6]} 34... Qf4+ {[%clk 0:00:05.3]} 35. Kg1 {[%clk 0:00:15.8]} 1/2-1/2

[Event "Late-Titled-Tuesday-Blitz-February-20-2024"]
[Site "Chess.com"]
[Date "2024.02.20"]
[Round "2"]
[White "Kosak12"]
[Black "Dinamo3"]
[Result "1-0"]
[WhiteElo "2814"]
[BlackElo "2517"]
[TimeControl "180+1"]
[EndTime "14:16:59 PST"]
[Termination "Kosak12 won on time"]

1. e4 {[%clk 0:02:32.9]} 1... c5 {[%clk 0:03:00]} 2. c3 {[%clk 0:02:30.5]} 2...
Nf6 {[%clk 0:02:59.6]} 3. e5 {[%clk 0:02:30.3]} 3... Nd5 {[%clk 0:02:59.9]} 4.
Nf3 {[%clk 0:02:30.6]} 4... Nc6 {[%clk 0:02:58.3]} 5. Bc4 {[%clk 0:02:28.5]}
5... Nb6 {[%clk 0:02:56.3]} 6. Bb3 {[%clk 0:02:28.6]} 6... d5 {[%clk 0:02:54]}
7. exd6 {[%clk 0:02:26.7]} 7... Qxd6 {[%clk 0:02:53.2]} 8. O-O {[%clk
0:02:23.5]} 8... e6 {[%clk 0:02:47.8]} 9. d4 {[%clk 0:02:23.3]} 9... cxd4 {[%clk
0:02:47.6]} 10. cxd4 {[%clk 0:02:23.3]} 10... Be7 {[%clk 0:02:45.7]} 11. Nc3
{[%clk 0:02:23]} 11... O-O {[%clk 0:02:42.8]} 12. a3 {[%clk 0:02:08.5]} 12...
Nd5 {[%clk 0:02:12.7]} 13. Ne4 {[%clk 0:02:00.8]} 13... Qd8 {[%clk 0:02:10.8]}
14. Bc2 {[%clk 0:01:50.7]} 14... b6 {[%clk 0:01:54.4]} 15. Qd3 {[%clk
0:01:47.6]} 15... g6 {[%clk 0:01:46.6]} 16. Bh6 {[%clk 0:01:45.5]} 16... Re8
{[%clk 0:01:46.2]} 17. Rfe1 {[%clk 0:01:43.5]} 17... Bb7 {[%clk 0:01:46]} 18.
Rad1 {[%clk 0:01:42.7]} 18... Rc8 {[%clk 0:01:43.1]} 19. Bb1 {[%clk 0:01:40.3]}
19... Nf6 {[%clk 0:01:25.9]} 20. Ba2 {[%clk 0:00:42]} 20... Nxe4 {[%clk
0:01:22.8]} 21. Qxe4 {[%clk 0:00:34.6]} 21... Bf6 {[%clk 0:00:58.2]} 22. Qf4
{[%clk 0:00:25.7]} 22... Bg7 {[%clk 0:00:42.6]} 23. d5 {[%clk 0:00:22.3]} 23...
exd5 {[%clk 0:00:38.3]} 24. Rxe8+ {[%clk 0:00:20.1]} 24... Qxe8 {[%clk
0:00:39.2]} 25. Bxd5 {[%clk 0:00:20.3]} 25... Rd8 {[%clk 0:00:07.1]} 26. Re1
{[%clk 0:00:13]} 26... Qd7 {[%clk 0:00:05.5]} 27. Bb3 {[%clk 0:00:09.2]} 27...
Bxh6 {[%clk 0:00:03.4]} 28. Qxh6 {[%clk 0:00:09.1]} 28... Kh8 {[%clk 0:00:02]}
29. Ng5 {[%clk 0:00:07.7]} 29... f6 {[%clk 0:00:02.6]} 30. Nf7+ {[%clk
0:00:07.9]} 1-0

[Event "Late-Titled-Tuesday-Blitz-February-20-2024"]
[Site "Chess.com"]
[Date "2024.02.20"]
[Round "2"]
[White "dosto07"]
[Black "NowInChess"]
[Result "1-0"]
[WhiteElo "2508"]
[BlackElo "2299"]
[TimeControl "180+1"]
[EndTime "14:17:00 PST"]
[Termination "dosto07 won on time"]

1. e4 {[%clk 0:03:00.9]} 1... e6 {[%clk 0:03:00]} 2. d4 {[%clk 0:02:59.7]} 2...
d5 {[%clk 0:03:00.5]} 3. Nd2 {[%clk 0:03:00.2]} 3... Nc6 {[%clk 0:03:00.4]} 4.
Ngf3 {[%clk 0:02:59.9]} 4... Nf6 {[%clk 0:03:00.1]} 5. e5 {[%clk 0:02:59.3]}
5... Nd7 {[%clk 0:03:00.3]} 6. Be2 {[%clk 0:02:59.9]} 6... f6 {[%clk 0:03:00.2]}
7. exf6 {[%clk 0:03:00.8]} 7... Qxf6 {[%clk 0:03:00.4]} 8. Nf1 {[%clk
0:03:00.5]} 8... Bd6 {[%clk 0:03:00.6]} 9. Ne3 {[%clk 0:03:00.4]} 9... O-O
{[%clk 0:03:00.2]} 10. O-O {[%clk 0:03:01]} 10... Nb6 {[%clk 0:02:39.2]} 11. Ng4
{[%clk 0:03:00.2]} 11... Qe7 {[%clk 0:01:58.1]} 12. Bg5 {[%clk 0:02:38.9]} 12...
Qf7 {[%clk 0:01:53.2]} 13. c3 {[%clk 0:02:26.9]} 13... h6 {[%clk 0:01:31.1]} 14.
Bd2 {[%clk 0:02:04]} 14... Bd7 {[%clk 0:01:26.1]} 15. h3 {[%clk 0:02:00]} 15...
Rae8 {[%clk 0:01:21.9]} 16. Bxh6 {[%clk 0:01:57.4]} 16... e5 {[%clk 0:01:17.2]}
17. dxe5 {[%clk 0:01:57.4]} 17... Bxg4 {[%clk 0:01:09.6]} 18. hxg4 {[%clk
0:01:32.2]} 18... Nxe5 {[%clk 0:01:08.4]} 19. Nxe5 {[%clk 0:01:28.1]} 19... Rxe5
{[%clk 0:00:54.5]} 20. Be3 {[%clk 0:01:27.3]} 20... Nc4 {[%clk 0:00:51.7]} 21.
Bxc4 {[%clk 0:01:24.3]} 21... dxc4 {[%clk 0:00:50.6]} 22. Bd4 {[%clk 0:01:11.6]}
22... Rd5 {[%clk 0:00:46.1]} 23. Qe2 {[%clk 0:01:08.3]} 23... Qf4 {[%clk
0:00:35.4]} 24. g3 {[%clk 0:01:05.3]} 24... Qh6 {[%clk 0:00:34.3]} 25. Qxc4
{[%clk 0:01:02.5]} 25... c6 {[%clk 0:00:29.3]} 26. Kg2 {[%clk 0:01:01.9]} 26...
Qg5 {[%clk 0:00:17.7]} 27. Be3 {[%clk 0:00:56.5]} 27... Qf6 {[%clk 0:00:15]} 28.
Rad1 {[%clk 0:00:55.3]} 28... Qf3+ {[%clk 0:00:13.3]} 29. Kg1 {[%clk 0:00:55.5]}
29... Bxg3 {[%clk 0:00:12]} 30. Rxd5 {[%clk 0:00:25.2]} 30... cxd5 {[%clk
0:00:10.3]} 31. Qd4 {[%clk 0:00:23.8]} 31... Bb8 {[%clk 0:00:04.6]} 32. Rd1
{[%clk 0:00:21.6]} 32... Kh8 {[%clk 0:00:01.3]} 33. g5 {[%clk 0:00:12.1]} 1-0

[Event "Late-Titled-Tuesday-Blitz-February-20-2024"]
[Site "Chess.com"]
[Date "2024.02.20"]
[Round "2"]
[White "igorkovalenko"]
[Black "MrKGG1"]
[Result "1-0"]
[WhiteElo "2971"]
[BlackElo "2587"]
[TimeControl "180+1"]
[EndTime "14:17:01 PST"]
[Termination "igorkovalenko won by resignation"]

1. e4 {[%clk 0:03:00.9]} 1... e6 {[%clk 0:02:57]} 2. Nc3 {[%clk 0:02:54.2]} 2...
d5 {[%clk 0:02:54.7]} 3. d4 {[%clk 0:02:54.5]} 3... Bb4 {[%clk 0:02:48.4]} 4.
exd5 {[%clk 0:02:53.1]} 4... exd5 {[%clk 0:02:44.6]} 5. Bd3 {[%clk 0:02:53.7]}
5... Ne7 {[%clk 0:02:38.7]} 6. Qf3 {[%clk 0:02:52.5]} 6... c5 {[%clk 0:02:33.1]}
7. dxc5 {[%clk 0:02:31.6]} 7... Nd7 {[%clk 0:02:18]} 8. a3 {[%clk 0:02:20.4]}
8... Bxc3+ {[%clk 0:02:12.4]} 9. bxc3 {[%clk 0:02:20.7]} 9... Nxc5 {[%clk
0:02:09.3]} 10. Ne2 {[%clk 0:02:21.2]} 10... O-O {[%clk 0:02:05.3]} 11. O-O
{[%clk 0:02:20.9]} 11... Nc6 {[%clk 0:01:44.5]} 12. Bf4 {[%clk 0:02:16.7]} 12...
Re8 {[%clk 0:01:33]} 13. Rfe1 {[%clk 0:02:16.1]} 13... Nxd3 {[%clk 0:01:11.9]}
14. cxd3 {[%clk 0:02:16.1]} 14... Bf5 {[%clk 0:01:08.7]} 15. g4 {[%clk 0:02:08]}
15... Bg6 {[%clk 0:01:05.5]} 16. Ng3 {[%clk 0:02:07.9]} 16... Qd7 {[%clk
0:01:04.1]} 17. h4 {[%clk 0:02:06.7]} 17... h6 {[%clk 0:01:02.6]} 18. h5 {[%clk
0:02:03.3]} 18... Bh7 {[%clk 0:01:02.6]} 19. d4 {[%clk 0:01:58.5]} 19... Re6
{[%clk 0:00:56]} 20. Re3 {[%clk 0:01:52.2]} 20... Rae8 {[%clk 0:00:54.4]} 21.
Rae1 {[%clk 0:01:52]} 21... Na5 {[%clk 0:00:51.6]} 22. g5 {[%clk 0:01:49.7]}
22... hxg5 {[%clk 0:00:49.5]} 23. Bxg5 {[%clk 0:01:50]} 23... Nc4 {[%clk
0:00:49.3]} 24. Rxe6 {[%clk 0:01:49.6]} 24... fxe6 {[%clk 0:00:41.4]} 25. h6
{[%clk 0:01:42.7]} 25... Qf7 {[%clk 0:00:40]} 26. Qg4 {[%clk 0:01:35.1]} 26...
Qg6 {[%clk 0:00:39.2]} 27. hxg7 {[%clk 0:01:33]} 27... Kxg7 {[%clk 0:00:26.1]}
28. Nh5+ {[%clk 0:01:32.1]} 28... Kf7 {[%clk 0:00:23.4]} 29. Nf6 {[%clk
0:01:17.5]} 29... Qf5 {[%clk 0:00:08]} 30. Qxf5 {[%clk 0:01:16.9]} 30... Bxf5
{[%clk 0:00:08.2]} 31. Nxe8 {[%clk 0:01:17.6]} 31... Kxe8 {[%clk 0:00:08.8]} 32.
Bc1 {[%clk 0:01:15.9]} 32... Kd7 {[%clk 0:00:08.6]} 33. f3 {[%clk 0:01:15.7]}
33... Kc6 {[%clk 0:00:08.9]} 34. Kf2 {[%clk 0:01:11.4]} 34... Kb5 {[%clk
0:00:09.2]} 35. Rg1 {[%clk 0:01:12.1]} 35... b6 {[%clk 0:00:08.2]} 36. Rg7
{[%clk 0:01:13]} 36... a5 {[%clk 0:00:08.4]} 37. Rb7 {[%clk 0:01:06.9]} 37...
Ka4 {[%clk 0:00:08.4]} 38. Bf4 {[%clk 0:01:06.8]} 38... Kb3 {[%clk 0:00:07.4]}
39. Bc7 {[%clk 0:01:06]} 39... Kxc3 {[%clk 0:00:06.5]} 40. Bxb6 {[%clk
0:01:05.5]} 40... Nxb6 {[%clk 0:00:03.7]} 41. Rxb6 {[%clk 0:01:06.4]} 41... Kxd4
{[%clk 0:00:04.2]} 42. Ra6 {[%clk 0:01:05.9]} 42... Kc4 {[%clk 0:00:04.2]} 43.
Rxa5 {[%clk 0:01:05.4]} 43... d4 {[%clk 0:00:04.6]} 44. Ra7 {[%clk 0:01:00.4]}
44... Kd3 {[%clk 0:00:04]} 45. a4 {[%clk 0:00:59.3]} 45... e5 {[%clk 0:00:03.9]}
46. Rc7 {[%clk 0:00:57.7]} 46... Kd2 {[%clk 0:00:03.8]} 47. a5 {[%clk
0:00:57.8]} 47... e4 {[%clk 0:00:04.1]} 48. fxe4 {[%clk 0:00:57.7]} 48... Bxe4
{[%clk 0:00:05]} 49. a6 {[%clk 0:00:57.9]} 49... d3 {[%clk 0:00:05.1]} 50. a7
{[%clk 0:00:57.6]} 50... Kd1 {[%clk 0:00:05.3]} 51. Ke3 {[%clk 0:00:57.6]} 51...
d2 {[%clk 0:00:02.8]} 52. Kxe4 {[%clk 0:00:57.6]} 52... Ke1 {[%clk 0:00:03.4]}
53. Rd7 {[%clk 0:00:58.2]} 53... d1=Q {[%clk 0:00:03.6]} 54. Rxd1+ {[%clk
0:00:58.7]} 54... Kxd1 {[%clk 0:00:04.5]} 1-0

[Event "Late-Titled-Tuesday-Blitz-February-20-2024"]
[Site "Chess.com"]
[Date "2024.02.20"]
[Round "2"]
[White "SaqoChess_Twitch"]
[Black "Grischuk"]
[Result "0-1"]
[WhiteElo "2628"]
[BlackElo "3072"]
[TimeControl "180+1"]
[EndTime "14:17:02 PST"]
[Termination "Grischuk won by resignation"]

1. d4 {[%clk 0:03:00.9]} 1... e6 {[%clk 0:02:59.9]} 2. c4 {[%clk 0:03:01.5]}
2... b6 {[%clk 0:03:00]} 3. Nc3 {[%clk 0:03:02]} 3... Bb4 {[%clk 0:02:57.9]} 4.
a3 {[%clk 0:03:00.7]} 4... Bxc3+ {[%clk 0:02:57.7]} 5. bxc3 {[%clk 0:03:01.6]}
5... f5 {[%clk 0:02:52.9]} 6. e3 {[%clk 0:02:59.5]} 6... Nf6 {[%clk 0:02:52.4]}
7. f3 {[%clk 0:02:59.6]} 7... O-O {[%clk 0:02:42.9]} 8. Bd3 {[%clk 0:02:59.8]}
8... Nc6 {[%clk 0:02:36.3]} 9. Ne2 {[%clk 0:02:59.7]} 9... Ba6 {[%clk
0:02:34.1]} 10. O-O {[%clk 0:02:59.6]} 10... Na5 {[%clk 0:02:30.8]} 11. c5
{[%clk 0:02:38]} 11... Bxd3 {[%clk 0:02:29.5]} 12. Qxd3 {[%clk 0:02:38.9]} 12...
bxc5 {[%clk 0:02:28.8]} 13. e4 {[%clk 0:02:31.7]} 13... fxe4 {[%clk 0:02:14.7]}
14. fxe4 {[%clk 0:02:32.6]} 14... Nb3 {[%clk 0:02:13.8]} 15. Bg5 {[%clk
0:02:11.5]} 15... Nxa1 {[%clk 0:01:56]} 16. e5 {[%clk 0:02:11.2]} 16... Nb3
{[%clk 0:01:55.7]} 17. exf6 {[%clk 0:02:08.4]} 17... gxf6 {[%clk 0:01:56.6]} 18.
Bh6 {[%clk 0:01:43.8]} 18... Rf7 {[%clk 0:01:56.9]} 19. Qc4 {[%clk 0:01:14.4]}
19... Rb8 {[%clk 0:01:38.9]} 20. d5 {[%clk 0:01:13.5]} 20... Qe7 {[%clk
0:00:52.7]} 21. Ng3 {[%clk 0:01:00.5]} 21... f5 {[%clk 0:00:13.4]} 22. Rb1
{[%clk 0:00:44.1]} 22... exd5 {[%clk 0:00:13.1]} 23. Rxb3 {[%clk 0:00:39.5]}
23... Rb6 {[%clk 0:00:09.5]} 24. Rxb6 {[%clk 0:00:38.8]} 24... axb6 {[%clk
0:00:09.4]} 25. Qxd5 {[%clk 0:00:38.5]} 25... c6 {[%clk 0:00:08.7]} 26. Qd2
{[%clk 0:00:32.8]} 26... Qf6 {[%clk 0:00:05.8]} 27. h3 {[%clk 0:00:31.6]} 27...
f4 {[%clk 0:00:04.5]} 28. Ne4 {[%clk 0:00:20.4]} 28... Qxh6 {[%clk 0:00:04.5]}
29. Nd6 {[%clk 0:00:21.1]} 29... Rf8 {[%clk 0:00:04.5]} 30. Qa2+ {[%clk
0:00:19.8]} 30... Qe6 {[%clk 0:00:04.4]} 31. Qd2 {[%clk 0:00:20.1]} 31... Qe3+
{[%clk 0:00:04.7]} 32. Qf2 {[%clk 0:00:16.7]} 32... b5 {[%clk 0:00:04.7]} 33.
Kf1 {[%clk 0:00:15.7]} 33... Qxf2+ {[%clk 0:00:04.7]} 34. Kxf2 {[%clk
0:00:16.6]} 34... Ra8 {[%clk 0:00:05.2]} 35. Ne4 {[%clk 0:00:17.5]} 35... Rxa3
{[%clk 0:00:05.1]} 36. Kf3 {[%clk 0:00:18.4]} 36... d5 {[%clk 0:00:04.8]} 37.
Kxf4 {[%clk 0:00:19.3]} 37... dxe4 {[%clk 0:00:04.6]} 0-1

[Event "Late-Titled-Tuesday-Blitz-February-20-2024"]
[Site "Chess.com"]
[Date "2024.02.20"]
[Round "2"]
[White "NtcPou"]
[Black "Bkmzzzzz"]
[Result "0-1"]
[WhiteElo "2006"]
[BlackElo "2425"]
[TimeControl "180+1"]
[EndTime "14:17:02 PST"]
[Termination "Bkmzzzzz won by resignation"]

1. e4 {[%clk 0:03:00.9]} 1... d6 {[%clk 0:02:59.1]} 2. d4 {[%clk 0:03:00.2]}
2... Nf6 {[%clk 0:02:59.6]} 3. Nc3 {[%clk 0:02:59.4]} 3... e5 {[%clk 0:02:59.4]}
4. Nf3 {[%clk 0:02:47.8]} 4... Nbd7 {[%clk 0:02:58.2]} 5. Bc4 {[%clk 0:02:44.3]}
5... Be7 {[%clk 0:02:58.4]} 6. O-O {[%clk 0:02:43.1]} 6... O-O {[%clk
0:02:58.7]} 7. Re1 {[%clk 0:02:39]} 7... c6 {[%clk 0:02:59.2]} 8. a4 {[%clk
0:02:38.4]} 8... b6 {[%clk 0:02:58.8]} 9. h3 {[%clk 0:02:36.3]} 9... a6 {[%clk
0:02:58.8]} 10. Be3 {[%clk 0:02:31.6]} 10... Bb7 {[%clk 0:02:46.9]} 11. Qd3
{[%clk 0:02:06.8]} 11... b5 {[%clk 0:02:45.1]} 12. Ba2 {[%clk 0:01:57]} 12... b4
{[%clk 0:02:22.5]} 13. Ne2 {[%clk 0:01:54.8]} 13... exd4 {[%clk 0:02:07.3]} 14.
Nexd4 {[%clk 0:01:43.8]} 14... c5 {[%clk 0:01:58.3]} 15. Nf5 {[%clk 0:01:42.9]}
15... Bxe4 {[%clk 0:01:58.7]} 16. Nxe7+ {[%clk 0:01:26.7]} 16... Qxe7 {[%clk
0:01:59.6]} 17. Qd2 {[%clk 0:01:07.5]} 17... Bxf3 {[%clk 0:01:57.5]} 18. gxf3
{[%clk 0:01:06.3]} 18... Ne5 {[%clk 0:01:57.2]} 19. Kg2 {[%clk 0:00:53.4]} 19...
Qb7 {[%clk 0:01:56.5]} 20. Qe2 {[%clk 0:00:46.5]} 20... Rfe8 {[%clk 0:01:51.4]}
21. Bg5 {[%clk 0:00:41.7]} 21... Ng6 {[%clk 0:00:56.8]} 22. Qd3 {[%clk
0:00:32.6]} 22... Red8 {[%clk 0:00:34.3]} 23. Re3 {[%clk 0:00:19.7]} 23... d5
{[%clk 0:00:33.7]} 24. Rae1 {[%clk 0:00:19.7]} 24... c4 {[%clk 0:00:33.7]} 25.
Qe2 {[%clk 0:00:17.9]} 25... Qc6 {[%clk 0:00:26.1]} 26. Kg1 {[%clk 0:00:17.3]}
26... h6 {[%clk 0:00:24.5]} 27. Bxf6 {[%clk 0:00:17.6]} 27... Qxf6 {[%clk
0:00:25.3]} 28. c3 {[%clk 0:00:14.7]} 28... Nf4 {[%clk 0:00:24.2]} 29. Qf1
{[%clk 0:00:13.2]} 29... Nd3 {[%clk 0:00:21.8]} 30. Rd1 {[%clk 0:00:12.5]} 30...
Nxb2 {[%clk 0:00:21.3]} 31. Rd2 {[%clk 0:00:12.9]} 31... Nd3 {[%clk 0:00:21.8]}
32. cxb4 {[%clk 0:00:13.2]} 32... Nxb4 {[%clk 0:00:20.8]} 33. Bb1 {[%clk
0:00:12.7]} 33... d4 {[%clk 0:00:21]} 34. Re4 {[%clk 0:00:12.6]} 34... c3 {[%clk
0:00:20.7]} 35. Rde2 {[%clk 0:00:11.5]} 35... d3 {[%clk 0:00:20.6]} 36. Bxd3
{[%clk 0:00:10.9]} 36... Nxd3 {[%clk 0:00:20.3]} 37. Qg2 {[%clk 0:00:09.2]}
37... Nf4 {[%clk 0:00:19.5]} 0-1